bitfinex-derivatives/quotes_BTCF0:USTF0_20250324
["timestamp","ask_amount","ask_price","bid_price","bid_amount"]
[1742802070317,0.72463925,86828.0,86827.0,0.24834469]
[1742802072813,0.72527925,86828.0,86827.0,0.24898469]
[1742802075220,0.72527925,86828.0,86827.0,0.24898469]
[1742802078418,0.00264,86828.0,86827.0,0.24898469]
[1742802078615,0.1152386,86835.0,86834.0,0.1151599]
[1742802078816,0.1727366,86837.0,86836.0,0.1151573]
[1742802079023,0.2987766,86837.0,86836.0,0.1159973]
[1742802079323,0.00084,86837.0,86836.0,0.13087279]
[1742802079534,0.0004,86840.0,86839.0,0.1151533]
[1742802079723,0.115552,86840.0,86839.0,0.13002879]
[1742802080317,0.35651095,86840.0,86839.0,0.13002879]
[1742802080516,0.35651095,86840.0,86839.0,0.13086879]
[1742802080716,0.36151095,86840.0,86839.0,0.13086879]
[1742802080923,0.36551095,86840.0,86839.0,0.13086879]
[1742802081623,0.12515895,86840.0,86839.0,0.13086879]
[1742802082528,0.24031095,86840.0,86839.0,0.13086879]
[1742802083026,0.12515895,86840.0,86839.0,0.13086879]
[1742802083225,0.12515895,86840.0,86839.0,0.14201834]
[1742802084824,0.01000001,86840.0,86839.0,0.14201834]
[1742802085215,0.01000001,86840.0,86839.0,0.25793834]
[1742802086530,0.01000001,86840.0,86839.0,0.64301003]
[1742802086719,0.0094,86840.0,86839.0,0.64301003]
[1742802087040,0.1782324,86855.0,86852.0,0.115136]
[1742802087328,0.46834,86853.0,86852.0,0.115136]
[1742802087627,0.1755747,86853.0,86852.0,0.115136]
[1742802087829,0.29072966,86853.0,86852.0,0.115976]
[1742802089418,0.29672966,86853.0,86852.0,0.115976]
[1742802090024,0.30172966,86853.0,86852.0,0.115976]
[1742802090819,0.18659496,86853.0,86852.0,0.115976]
[1742802091019,0.12679496,86853.0,86852.0,0.115976]
[1742802094118,0.12679496,86853.0,86852.0,0.12693326]
[1742802094432,0.01164,86853.0,86852.0,0.12693326]
[1742802094632,0.011,86853.0,86852.0,0.12693326]
[1742802094933,0.01184,86853.0,86852.0,0.12693326]
[1742802095328,0.011,86853.0,86852.0,0.14195464]
[1742802095931,0.01184,86853.0,86852.0,0.14195464]
[1742802097935,0.011,86853.0,86852.0,0.14195464]
[1742802099028,0.01184,86853.0,86852.0,0.14195464]
[1742802099335,0.011,86853.0,86852.0,0.14195464]
[1742802103039,0.00017277,86861.0,86857.0,0.0575644]
[1742802103335,0.00017277,86861.0,86860.0,0.1151254]
[1742802103535,0.00017277,86861.0,86860.0,0.13098678]
[1742802103735,0.00017277,86861.0,86860.0,0.26068678]
[1742802104032,0.00017277,86861.0,86860.0,0.13098678]
[1742802104226,0.48797688,86861.0,86860.0,0.13098678]
[1742802104426,0.37285278,86861.0,86860.0,0.19608678]
[1742802104634,0.37285278,86861.0,86860.0,0.26068678]
[1742802104828,0.37285278,86861.0,86860.0,0.2456654]
[1742802105029,0.48915278,86861.0,86860.0,0.2456654]
[1742802105230,0.49415278,86861.0,86860.0,0.2456654]
[1742802105429,0.49315278,86861.0,86860.0,0.2456654]
[1742802106233,0.49315278,86861.0,86860.0,0.26061487]
[1742802108037,0.49315278,86861.0,86860.0,0.2456654]
[1742802110737,0.49315278,86861.0,86860.0,0.26064697]
[1742802115150,0.60827688,86861.0,86860.0,0.26064697]
[1742802115542,0.49315278,86861.0,86860.0,0.26064697]
[1742802115736,0.60827688,86861.0,86860.0,0.26064697]
[1742802116141,0.24747688,86861.0,86860.0,0.26064697]
[1742802116441,0.60827688,86861.0,86860.0,0.26064697]
[1742802117840,0.24747688,86861.0,86860.0,0.26064697]
[1742802118542,0.60827688,86861.0,86860.0,0.26064697]
[1742802119048,0.49315278,86861.0,86860.0,0.26064697]
[1742802120141,0.60827688,86861.0,86860.0,0.26064697]
[1742802121549,0.1151374,86852.0,86849.0,0.0575697]
[1742802121843,0.3030374,86851.0,86850.0,0.17581147]
[1742802122042,0.3036774,86851.0,86850.0,0.17581147]
[1742802122245,0.41880452,86851.0,86850.0,0.17581147]
[1742802122749,0.42993823,86851.0,86850.0,0.17581147]
[1742802122952,0.42993823,86851.0,86850.0,0.23731147]
[1742802123136,0.43093823,86851.0,86850.0,0.23731147]
[1742802125239,0.43093823,86851.0,86850.0,0.00077277]
[1742802125446,0.43093823,86851.0,86850.0,0.00017277]
[1742802125647,0.43093823,86851.0,86850.0,0.00077277]
[1742802125843,0.43093823,86851.0,86850.0,0.00017277]
[1742802126047,0.43093823,86851.0,86850.0,0.11531147]
[1742802126253,0.43093823,86851.0,86850.0,0.00017277]
[1742802126454,0.43093823,86851.0,86850.0,0.00085277]
[1742802126847,0.43093823,86851.0,86850.0,0.12395277]
[1742802127642,0.43093823,86851.0,86850.0,0.23909147]
[1742802128443,0.43093823,86851.0,86850.0,0.12395277]
[1742802129355,0.43093823,86851.0,86850.0,0.23909147]
[1742802131658,0.42993823,86851.0,86850.0,0.23909147]
[1742802131858,0.0575786,86838.0,86836.0,0.1151559]
[1742802132078,0.1275,86837.0,86836.0,0.1159159]
[1742802132258,0.00076,86837.0,86836.0,0.1159159]
[1742802132454,0.1159159,86837.0,86836.0,0.1159159]
[1742802132758,0.1159159,86837.0,86836.0,0.14017693]
[1742802133448,0.00076,86837.0,86836.0,0.14017693]
[1742802133648,0.06586,86837.0,86836.0,0.28003918]
[1742802134658,0.06586,86837.0,86836.0,0.28203918]
[1742802135247,0.06586,86837.0,86836.0,0.28003918]
[1742802135460,0.06586,86837.0,86836.0,0.27803918]
[1742802137955,0.00076,86837.0,86836.0,0.27803918]
[1742802139159,0.00076,86837.0,86836.0,0.2386159]
[1742802140060,0.00076,86837.0,86836.0,0.28029289]
[1742802142463,0.06076,86837.0,86836.0,0.28029289]
[1742802143954,0.00076,86837.0,86836.0,0.28029289]
[1742802147161,0.0604,86845.0,86844.0,0.1151466]
[1742802147366,0.0612,86845.0,86844.0,0.1157866]
[1742802147569,0.1763453,86845.0,86844.0,0.1157866]
[1742802147867,0.2404453,86845.0,86844.0,0.1157866]
[1742802148067,0.2404453,86845.0,86844.0,0.27936359]
[1742802148560,0.1253,86845.0,86844.0,0.27936359]
[1742802148960,0.1273,86845.0,86844.0,0.27936359]
[1742802149164,0.1273,86845.0,86844.0,0.29039107]
[1742802149357,0.0028,86845.0,86844.0,0.29039107]
[1742802149553,0.003,86845.0,86844.0,0.29039107]
[1742802149760,0.00376,86845.0,86844.0,0.29039107]
[1742802151360,0.00376,86845.0,86844.0,0.27936359]
[1742802151665,0.06496,86845.0,86844.0,0.27936359]
[1742802151859,0.1801053,86845.0,86844.0,0.27936359]
[1742802154469,0.06631221,86877.0,86860.0,0.1151254]
[1742802154669,0.1258,86865.0,86860.0,0.4759254]
[1742802154967,0.0645,86864.0,86860.0,0.50217278]
[1742802155160,0.00077278,86861.0,86860.0,0.51820239]
[1742802155655,0.00477278,86861.0,86860.0,0.51820239]
[1742802156867,0.00417277,86861.0,86860.0,0.51820239]
[1742802157355,0.00417277,86861.0,86860.0,0.52956176]
[1742802157555,0.00417277,86861.0,86860.0,0.65616176]
[1742802157866,0.00417277,86861.0,86860.0,0.59146176]
[1742802158264,0.12927277,86861.0,86860.0,0.59146176]
[1742802160667,0.12927277,86861.0,86860.0,0.58010239]
[1742802165677,0.12927277,86861.0,86860.0,0.21930239]
[1742802165976,0.14126793,86861.0,86860.0,0.15740239]
[1742802166165,0.25639505,86861.0,86860.0,0.15740239]
[1742802167064,0.25639505,86861.0,86860.0,0.22210239]
[1742802167771,0.25639505,86861.0,86860.0,0.13175501]
[1742802168078,0.37151915,86861.0,86860.0,0.13175501]
[1742802168370,0.14126793,86861.0,86860.0,0.13175501]
[1742802168562,0.14126793,86861.0,86860.0,0.13179501]
[1742802168764,0.14126793,86861.0,86860.0,0.25859501]
[1742802169275,0.14126793,86861.0,86860.0,0.2425654]
[1742802169869,0.25639203,86861.0,86860.0,0.2425654]
[1742802176380,0.37151915,86861.0,86860.0,0.00064]
[1742802176580,0.057564,86858.0,86854.0,0.0641]
[1742802176784,0.057564,86858.0,86855.0,0.1782307]
[1742802176785,0.1151307,86856.0,86855.0,0.1782307]
[1742802176980,0.1151307,86856.0,86855.0,0.1788307]
[1742802177180,0.35875783,86856.0,86855.0,0.1788307]
[1742802177982,0.36075783,86856.0,86855.0,0.1788307]
[1742802180784,0.0575666,86855.0,86852.0,0.00017277]
[1742802180983,0.1151347,86853.0,86852.0,0.11530877]
[1742802181173,0.1159347,86853.0,86852.0,0.11590877]
[1742802181375,0.23106845,86853.0,86852.0,0.11598877]
[1742802181576,0.35416845,86853.0,86852.0,0.11598877]
[1742802182280,0.35416845,86853.0,86852.0,0.00085277]
[1742802182686,0.35616845,86853.0,86852.0,0.13065728]
[1742802183876,0.35616845,86853.0,86852.0,0.19575728]
[1742802185078,0.35616845,86853.0,86852.0,0.25925728]
[1742802185574,0.4079,86873.0,86860.0,0.1151254]
[1742802185876,0.00017277,86861.0,86860.0,0.1158454]
[1742802186087,0.00085277,86861.0,86860.0,0.1746454]
[1742802186275,0.00085277,86861.0,86860.0,0.25281391]
[1742802186987,0.00385277,86861.0,86860.0,0.2381454]
[1742802187780,0.00385277,86861.0,86860.0,0.24917262]
[1742802190878,0.00317277,86861.0,86860.0,0.24917262]
[1742802191586,0.00385277,86861.0,86860.0,0.24917262]
[1742802192582,0.00385277,86861.0,86860.0,0.60997262]
[1742802194595,0.00385277,86861.0,86860.0,0.5989454]
[1742802194804,0.12255277,86861.0,86860.0,0.5989454]
[1742802196386,0.12187277,86861.0,86860.0,0.5989454]
[1742802196892,0.12263277,86861.0,86860.0,0.5989454]
[1742802200496,0.12263277,86861.0,86860.0,0.61362592]
[1742802202890,0.00393277,86861.0,86860.0,0.61362592]
[1742802203390,0.13013277,86861.0,86860.0,0.61362592]
[1742802204098,0.13013277,86861.0,86860.0,0.5989454]
[1742802204984,0.24525687,86861.0,86860.0,0.2381454]
[1742802205195,0.36038399,86861.0,86860.0,0.00072]
[1742802205498,0.36038399,86861.0,86856.0,0.1151303]
[1742802205499,0.1151268,86859.0,86858.0,0.1151272]
[1742802205688,0.1158068,86859.0,86858.0,0.1158072]
[1742802205997,0.4766068,86859.0,86858.0,0.1158072]
[1742802206189,0.59173392,86859.0,86858.0,0.1749072]
[1742802206388,0.2421086,86859.0,86858.0,0.1749072]
[1742802206788,0.2441086,86859.0,86858.0,0.1749072]
[1742802209584,0.6049086,86859.0,86858.0,0.1749072]
[1742802220597,0.6049086,86859.0,86858.0,0.05978]
[1742802220797,0.1151334,86854.0,86853.0,0.1151339]
[1742802220997,0.1158134,86854.0,86853.0,0.1737339]
[1742802221198,0.1158134,86854.0,86853.0,0.1744139]
[1742802221493,0.23094318,86854.0,86853.0,0.1744139]
[1742802221698,0.26274318,86854.0,86853.0,0.1744139]
[1742802222205,0.32434318,86854.0,86853.0,0.2331139]
[1742802224010,0.32634318,86854.0,86853.0,0.2331139]
[1742802226808,0.29454318,86854.0,86853.0,0.2331139]
[1742802227114,0.29571503,86854.0,86853.0,0.2331139]
[1742802227411,0.32721503,86854.0,86853.0,0.2331139]
[1742802228204,0.32780696,86854.0,86853.0,0.2331139]
[1742802229111,0.32604318,86854.0,86853.0,0.2331139]
[1742802229412,0.32820282,86854.0,86853.0,0.2331139]
[1742802231213,0.23510282,86854.0,86853.0,0.2331139]
[1742802246320,0.26780282,86854.0,86853.0,0.2331139]
[1742802247328,0.23510282,86854.0,86853.0,0.2331139]
[1742802247527,0.23510282,86854.0,86853.0,0.1744139]
[1742802247727,0.29950282,86854.0,86853.0,0.1744139]
[1742802247922,0.29950282,86854.0,86853.0,0.2073139]
[1742802249730,0.4183608,86863.0,86853.0,0.2073139]
[1742802249731,0.00017277,86861.0,86860.0,0.1151254]
[1742802249930,0.00017277,86861.0,86860.0,0.1160054]
[1742802250130,0.00105278,86861.0,86860.0,0.1160054]
[1742802250327,0.00105278,86861.0,86860.0,0.1815054]
[1742802250925,0.00017277,86861.0,86860.0,0.1815054]
[1742802251124,0.03467277,86861.0,86860.0,0.1815054]
[1742802251327,0.03667277,86861.0,86860.0,0.1815054]
[1742802251623,0.03755278,86861.0,86860.0,0.1815054]
[1742802252138,0.03667277,86861.0,86860.0,0.1815054]
[1742802252928,0.0004,86872.0,86868.0,0.0575571]
[1742802253134,0.0327,86870.0,86869.0,0.5992702]
[1742802253328,0.0327,86870.0,86869.0,0.6001502]
[1742802270444,0.09801848,86870.0,86869.0,0.6001502]
[1742802271347,0.09860881,86870.0,86869.0,0.6001502]
[1742802272736,0.09900758,86870.0,86869.0,0.6001502]
[1742802282259,0.09900758,86870.0,86869.0,0.2393502]
[1742802282558,0.09900758,86870.0,86869.0,0.6001502]
[1742802284760,0.09988759,86870.0,86869.0,0.6001502]
[1742802287566,0.09900758,86870.0,86869.0,0.6001502]
[1742802287963,0.21411978,86870.0,86869.0,0.6001502]
[1742802288268,0.21499979,86870.0,86869.0,0.6001502]
[1742802289166,0.09988759,86870.0,86869.0,0.6001502]
[1742802290974,0.21499979,86870.0,86869.0,0.6001502]
[1742802291577,0.21499979,86870.0,86869.0,0.2393502]
[1742802295674,0.33011499,86870.0,86869.0,0.00088]
[1742802295874,0.33011499,86870.0,86869.0,0.1159935]
[1742802296184,0.1151175,86866.0,86865.0,0.1151182]
[1742802296483,0.1151201,86864.0,86863.0,0.1726794]
[1742802296678,0.1157601,86864.0,86863.0,0.1726794]
[1742802296871,0.11776768,86864.0,86863.0,0.1733194]
[1742802297078,0.17896768,86864.0,86863.0,0.1733194]
[1742802298175,0.1769601,86864.0,86863.0,0.1733194]
[1742802298376,0.17930794,86864.0,86863.0,0.1733194]
[1742802298876,0.17930794,86864.0,86863.0,0.00064]
[1742802298877,0.1796482,86864.0,86863.0,0.00064]
[1742802299073,0.29477135,86864.0,86863.0,0.1157615]
[1742802300281,0.29477135,86864.0,86863.0,0.00064]
[1742802300488,0.1151347,86853.0,86848.0,0.0575705]
[1742802300786,0.115144,86846.0,86845.0,0.20683243]
[1742802300986,0.11893237,86846.0,86845.0,0.20743243]
[1742802301388,0.11893237,86846.0,86845.0,0.32257773]
[1742802301584,0.18503237,86846.0,86845.0,0.32257773]
[1742802301779,0.3001701,86846.0,86845.0,0.32257773]
[1742802301987,0.30051037,86846.0,86845.0,0.32257773]
[1742802302891,0.30051037,86846.0,86845.0,0.1157453]
[1742802303087,0.30072874,86846.0,86845.0,0.1157453]
[1742802303588,0.29672874,86846.0,86845.0,0.1157453]
[1742802303978,0.29672874,86846.0,86845.0,0.1488453]
[1742802304175,0.29672874,86846.0,86845.0,0.1528453]
[1742802304589,0.29672874,86846.0,86845.0,0.1568453]
[1742802304790,0.29672874,86846.0,86845.0,0.1528453]
[1742802304990,0.29672874,86846.0,86845.0,0.1558453]
[1742802305393,0.00434701,86846.0,86845.0,0.1558453]
[1742802305591,0.00358701,86846.0,86845.0,0.1558453]
[1742802306483,0.00358701,86846.0,86845.0,0.16944558]
[1742802306884,0.00358701,86846.0,86845.0,0.1548453]
[1742802307288,1e-07,86847.0,86846.0,0.115144]
[1742802307490,0.00017267,86854.0,86853.0,0.1151347]
[1742802307693,0.00017267,86854.0,86853.0,0.5920547]
[1742802308193,0.00017267,86854.0,86853.0,0.6539547]
[1742802308501,0.00089267,86854.0,86853.0,0.6539547]
[1742802309293,0.06159267,86854.0,86853.0,0.6539547]
[1742802310489,0.00017267,86854.0,86853.0,0.6549547]
[1742802310891,0.00089267,86854.0,86853.0,0.2951547]
[1742802311190,0.00089267,86854.0,86853.0,0.6559547]
[1742802311496,0.00017267,86854.0,86853.0,0.67067652]
[1742802311699,0.00089267,86854.0,86853.0,0.67067652]
[1742802314291,0.00017267,86854.0,86853.0,0.67067652]
[1742802315495,0.00089267,86854.0,86853.0,0.67067652]
[1742802316389,0.00017267,86854.0,86853.0,0.67067652]
[1742802316789,0.00089267,86854.0,86853.0,0.67067652]
[1742802316999,0.00017267,86854.0,86853.0,0.67067652]
[1742802318302,0.00017267,86854.0,86853.0,0.69498474]
[1742802318797,0.99,86872.0,86871.0,0.1151109]
[1742802318994,0.00112,86872.0,86871.0,0.1151109]
[1742802319191,0.1163095,86872.0,86871.0,0.1157109]
[1742802319389,0.0012,86872.0,86871.0,0.1157109]
[1742802319593,0.1163364,86872.0,86871.0,0.1157109]
[1742802320303,0.1488564,86872.0,86871.0,0.1475109]
[1742802320597,0.03372,86872.0,86871.0,0.19295626]
[1742802320802,0.033,86872.0,86871.0,0.19295626]
[1742802321101,0.03372,86872.0,86871.0,0.19295626]
[1742802321297,0.03372,86872.0,86871.0,0.19395626]
[1742802321996,0.06692,86872.0,86871.0,0.19395626]
[1742802322187,0.0662,86872.0,86871.0,0.19395626]
[1742802322589,0.06692,86872.0,86871.0,0.19395626]
[1742802323391,0.06492,86872.0,86871.0,0.19395626]
[1742802323595,0.06692,86872.0,86871.0,0.19395626]
[1742802324701,0.06692,86872.0,86871.0,0.21858123]
[1742802324898,0.09782,86872.0,86871.0,0.21858123]
[1742802326000,0.0971,86872.0,86871.0,0.21858123]
[1742802326208,0.2122095,86872.0,86871.0,0.21858123]
[1742802326402,0.03636,86872.0,86871.0,0.21858123]
[1742802326702,0.00017267,86880.0,86879.0,0.1151003]
[1742802327002,0.00089267,86880.0,86879.0,0.1157803]
[1742802327203,0.00097267,86880.0,86879.0,0.1798803]
[1742802327507,0.00017267,86880.0,86879.0,0.19532566]
[1742802327806,0.00217267,86880.0,86879.0,0.19532566]
[1742802328206,0.03563267,86880.0,86879.0,0.19532566]
[1742802328505,0.06613267,86880.0,86879.0,0.19532566]
[1742802329407,0.00293267,86880.0,86879.0,0.19532566]
[1742802329596,0.00217267,86880.0,86879.0,0.19532566]
[1742802329905,0.00297267,86880.0,86879.0,0.19532566]
[1742802330105,0.06617267,86880.0,86879.0,0.19532566]
[1742802330500,0.00297267,86880.0,86879.0,0.19532566]
[1742802330702,8e-05,86886.0,86879.0,0.19532566]
[1742802330703,8e-05,86886.0,86885.0,0.1150923]
[1742802331005,0.0008,86886.0,86885.0,0.4765723]
[1742802331206,8e-05,86886.0,86885.0,0.49201766]
[1742802331509,0.17936195,86886.0,86885.0,0.55571766]
[1742802331700,0.11586195,86886.0,86885.0,0.55571766]
[1742802331902,8e-05,86889.0,86888.0,0.1150883]
[1742802332101,8e-05,86889.0,86888.0,0.1797483]
[1742802332507,0.0327,86893.0,86892.0,0.115083]
[1742802332811,0.03358001,86893.0,86892.0,0.115963]
[1742802333106,0.14866474,86893.0,86892.0,0.13140836]
[1742802333302,0.0868794,86911.0,86892.0,0.46072732]
[1742802333603,0.115065,86906.0,86903.0,0.1150685]
[1742802333809,0.0329,86905.0,86903.0,0.1162685]
[1742802334408,0.11547016,86904.0,86903.0,0.1162685]
[1742802334610,0.14677016,86904.0,86903.0,0.16421386]
[1742802334899,0.26307727,86904.0,86903.0,0.16421386]
[1742802335302,0.27465279,86904.0,86903.0,0.01664536]
[1742802335510,0.27465279,86904.0,86837.0,0.5757749]
[1742802335511,0.115087,86889.0,86888.0,0.1150874]
[1742802335703,0.11568701,86889.0,86888.0,0.1150874]
[1742802335903,0.11568701,86889.0,86888.0,0.1159274]
[1742802336311,0.23077703,86889.0,86888.0,0.1159274]
[1742802337015,0.26207703,86889.0,86888.0,0.1159274]
[1742802338803,0.29477703,86889.0,86888.0,0.1159274]
[1742802339609,0.30626847,86889.0,86888.0,0.1159274]
[1742802340311,0.30626847,86889.0,86888.0,0.1189274]
[1742802340514,0.29477703,86889.0,86888.0,0.1189274]
[1742802341305,0.29477703,86889.0,86888.0,0.1159274]
[1742802341507,0.29477703,86889.0,86888.0,0.1179274]
[1742802342007,0.65557703,86889.0,86888.0,0.1179274]
[1742802344609,0.65497702,86889.0,86888.0,0.1170874]
[1742802345812,0.29417702,86889.0,86888.0,0.1170874]
[1742802346009,0.65497702,86889.0,86888.0,0.1170874]
[1742802346807,0.29417702,86889.0,86888.0,0.1170874]
[1742802347917,0.29417702,86889.0,86888.0,0.13228868]
[1742802350118,0.26147702,86889.0,86888.0,0.13228868]
[1742802350513,0.29397702,86889.0,86888.0,0.13228868]
[1742802350713,0.14639002,86889.0,86888.0,0.13228868]
[1742802350911,0.11509002,86889.0,86888.0,0.13228868]
[1742802351217,8e-05,86890.0,86889.0,0.115087]
[1742802351415,8e-05,86890.0,86889.0,0.177987]
[1742802351616,0.1726194,86896.0,86895.0,0.1150777]
[1742802352114,0.28770942,86896.0,86895.0,0.1150777]
[1742802352318,0.31830942,86896.0,86895.0,0.1150777]
[1742802352620,0.34900942,86896.0,86895.0,0.01520128]
[1742802352820,0.34900942,86896.0,86895.0,0.13028038]
[1742802354807,0.34900942,86896.0,86895.0,0.01520128]
[1742802355019,0.34900942,86896.0,86895.0,0.13028038]
[1742802355321,0.34980942,86896.0,86895.0,0.13108038]
[1742802360009,0.11589002,86896.0,86895.0,0.13108038]
[1742802360419,0.11589002,86896.0,86895.0,0.16108038]
[1742802361021,0.11589002,86896.0,86895.0,0.18551039]
[1742802361521,0.11589002,86896.0,86895.0,0.19697965]
[1742802362428,0.23096772,86896.0,86895.0,0.19697965]
[1742802363328,0.11589002,86896.0,86895.0,0.19697965]
[1742802364016,0.0008,86896.0,86895.0,0.19697965]
[1742802365426,8e-05,86897.0,86896.0,0.1150777]
[1742802365622,0.1154682,86904.0,86903.0,0.1150685]
[1742802365926,0.1154682,86904.0,86903.0,0.1158685]
[1742802366126,0.1162682,86904.0,86903.0,0.1158685]
[1742802366315,0.23133836,86904.0,86903.0,0.1158685]
[1742802366625,0.23133836,86904.0,86903.0,0.13106978]
[1742802367623,0.29443836,86904.0,86903.0,0.13106978]
[1742802367928,0.14757016,86904.0,86903.0,0.13026978]
[1742802368226,0.26263726,86904.0,86903.0,0.13106978]
[1742802369125,0.23133726,86904.0,86903.0,0.13106978]
[1742802369619,0.11627016,86904.0,86903.0,0.13106978]
[1742802369923,0.11627016,86904.0,86903.0,0.49186978]
[1742802370122,0.0634,86908.0,86903.0,0.49186978]
[1742802370123,0.1154248,86936.0,86935.0,0.1150261]
[1742802370318,0.1304,86936.0,86935.0,0.1150261]
[1742802370519,0.00144001,86936.0,86935.0,0.1161461]
[1742802370723,0.00100001,86936.0,86935.0,0.1161461]
[1742802370915,0.23109497,86936.0,86935.0,0.13134738]
[1742802371315,0.23227578,86936.0,86935.0,0.16184738]
[1742802371515,0.23227578,86936.0,86935.0,0.1466461]
[1742802380428,0.00218082,86936.0,86935.0,0.1466461]
[1742802380727,0.00158081,86936.0,86935.0,0.1466461]
[1742802380916,0.00158081,86936.0,86935.0,0.1783461]
[1742802381426,0.00011261,86944.0,86943.0,0.1150155]
[1742802382436,0.11512681,86944.0,86943.0,0.1793155]
[1742802383218,0.00011261,86944.0,86943.0,0.1793155]
[1742802384330,0.00011261,86944.0,86943.0,0.1803955]
[1742802385335,0.11512681,86944.0,86943.0,0.1803955]
[1742802385523,0.11616682,86944.0,86943.0,0.1803955]
[1742802385723,0.00115262,86944.0,86943.0,0.1803955]
[1742802386234,0.00011261,86944.0,86943.0,0.1803955]
[1742802386534,0.0886,86955.0,86951.0,0.115005]
[1742802386735,0.1164837,86952.0,86951.0,0.116085]
[1742802386930,0.00148,86952.0,86951.0,0.116085]
[1742802387125,0.00148,86952.0,86951.0,0.177985]
[1742802387328,0.0325,86960.0,86959.0,0.1149944]
[1742802387533,0.14853301,86960.0,86959.0,0.1160344]
[1742802387932,0.17963301,86960.0,86959.0,0.1160344]
[1742802388134,0.32653965,86960.0,86959.0,0.1779344]
[1742802390133,0.17964665,86960.0,86959.0,0.1779344]
[1742802390335,0.29463965,86960.0,86959.0,0.1779344]
[1742802390539,0.17964665,86960.0,86959.0,0.1779344]
[1742802391040,0.14714665,86960.0,86959.0,0.1779344]
[1742802391234,0.00104001,86960.0,86959.0,0.1779344]
[1742802391540,0.1149883,86964.0,86963.0,0.1149878]
[1742802391738,0.11602831,86964.0,86963.0,0.1160278]
[1742802391937,0.17952831,86964.0,86963.0,0.1773278]
[1742802392239,0.29451908,86964.0,86963.0,0.1773278]
[1742802402352,0.26381908,86964.0,86963.0,0.1773278]
[1742802402555,0.26381908,86964.0,86963.0,0.19205728]
[1742802403853,0.29661908,86964.0,86963.0,0.19205728]
[1742802406451,0.29661908,86964.0,86963.0,0.1773278]
[1742802413360,0.29661908,86964.0,86963.0,0.19208701]
[1742802413949,0.26381908,86964.0,86963.0,0.19208701]
[1742802417468,0.29621908,86964.0,86963.0,0.19208701]
[1742802417969,0.30621908,86964.0,86963.0,0.19208701]
[1742802419569,0.30621908,86964.0,86963.0,0.07709921]
[1742802419763,0.30621908,86964.0,86963.0,0.19208831]
[1742802420772,0.27381908,86964.0,86963.0,0.19208831]
[1742802421471,0.30591908,86964.0,86963.0,0.19208831]
[1742802422676,0.27381908,86964.0,86963.0,0.19208831]
[1742802423672,0.24101908,86964.0,86963.0,0.19208831]
[1742802424075,0.23101858,86964.0,86963.0,0.19208831]
[1742802424373,0.11602781,86964.0,86963.0,0.19208831]
[1742802424764,0.1149878,86964.0,86963.0,0.19208831]
[1742802425177,0.1160678,86964.0,86963.0,0.19208831]
[1742802426176,0.1160678,86964.0,86963.0,0.1773291]
[1742802426379,0.00108,86964.0,86963.0,0.1773291]
[1742802426581,0.1149878,86964.0,86963.0,0.1773291]
[1742802426777,0.1150664,86965.0,86964.0,0.1149878]
[1742802426983,0.00120001,86965.0,86964.0,0.5393278]
[1742802427181,8e-05,86965.0,86964.0,0.5393278]
[1742802427575,0.1149864,86965.0,86964.0,0.5393278]
[1742802427774,0.1160664,86965.0,86964.0,0.5393278]
[1742802430580,0.00108,86965.0,86964.0,0.5393278]
[1742802430884,0.1150656,86966.0,86965.0,0.1149864]
[1742802431081,0.11610561,86966.0,86965.0,0.1795264]
[1742802431675,0.00112001,86966.0,86965.0,0.1795264]
[1742802431980,0.0574844,86979.0,86967.0,0.1149838]
[1742802432179,0.16852441,86979.0,86978.0,0.1149693]
[1742802432377,0.22602813,86979.0,86978.0,0.1160093]
[1742802432577,0.11602813,86979.0,86978.0,0.1160093]
[1742802432978,0.23099603,86979.0,86978.0,0.1796093]
[1742802433873,0.11602813,86979.0,86978.0,0.5404093]
[1742802434075,0.11498812,86979.0,86978.0,0.5404093]
[1742802434281,0.00104001,86979.0,86978.0,0.55501734]
[1742802434588,0.0004,86984.0,86983.0,0.1149626]
[1742802434990,0.1164413,86984.0,86983.0,0.1789626]
[1742802435180,0.1164413,86984.0,86983.0,0.1800026]
[1742802435379,0.1153613,86984.0,86983.0,0.1789626]
[1742802440186,0.1164413,86984.0,86983.0,0.1800426]
[1742802445094,0.00148,86984.0,86983.0,0.1800426]
[1742802445396,0.0004,86984.0,86983.0,0.1800426]
[1742802447188,0.0004,86984.0,86983.0,0.19474642]
[1742802450182,0.0312,86998.0,86994.0,0.0574737]
[1742802450388,0.03224001,86998.0,86997.0,0.1149441]
[1742802450594,0.03224001,86998.0,86997.0,0.1159841]
[1742802450795,0.14718281,86998.0,86997.0,0.1159841]
[1742802451002,0.17988281,86998.0,86997.0,0.1159841]
[1742802451195,0.06494001,86998.0,86997.0,0.13065965]
[1742802451388,0.17988281,86998.0,86997.0,0.13065965]
[1742802451789,0.00104001,86998.0,86997.0,0.13065965]
[1742802451985,0.10338,87000.0,86999.0,0.1149415]
[1742802452286,0.10338,87000.0,86999.0,0.1159815]
[1742802452486,0.1033,87000.0,86999.0,0.13065705]
[1742802452687,0.1033,87000.0,86999.0,0.55505705]
[1742802453790,0.1345,87000.0,86999.0,0.55505705]
[1742802453993,0.2810402,87000.0,86999.0,0.5403815]
[1742802454189,0.28216021,87000.0,86999.0,0.5403815]
[1742802455000,0.10442001,87000.0,86999.0,0.5403815]
[1742802455190,0.1033,87000.0,86999.0,0.5403815]
[1742802455501,0.2182402,87000.0,86999.0,0.5403815]
[1742802455699,0.21928021,87000.0,86999.0,0.5403815]
[1742802456997,0.10434001,87000.0,86999.0,0.5403815]
[1742802457194,0.2182402,87000.0,86999.0,0.5403815]
[1742802457395,0.21936021,87000.0,86999.0,0.55534443]
[1742802458389,0.21936021,87000.0,86999.0,0.67054443]
[1742802459394,0.2306739,87000.0,86999.0,0.67054443]
[1742802459601,0.2306739,87000.0,86999.0,0.52294443]
[1742802460303,0.21936021,87000.0,86999.0,0.52294443]
[1742802461604,0.0574716,86998.0,86992.0,0.0574749]
[1742802461798,0.1149534,86990.0,86989.0,0.11512714]
[1742802461990,0.1149534,86990.0,86989.0,0.11584714]
[1742802461991,0.1156734,86990.0,86989.0,0.11584714]
[1742802462399,0.23061658,86990.0,86989.0,0.17984714]
[1742802462605,0.26081658,86990.0,86989.0,0.17984714]
[1742802464900,0.26081658,86990.0,86989.0,0.14744714]
[1742802466010,0.27081658,86990.0,86989.0,0.14744714]
[1742802466403,0.27081658,86990.0,86989.0,0.11584714]
[1742802466806,0.27081658,86990.0,86989.0,0.14764714]
[1742802468201,0.27081658,86990.0,86989.0,0.17954714]
[1742802468704,0.27081658,86990.0,86989.0,0.14764714]
[1742802469796,0.26791658,86990.0,86989.0,0.14764714]
[1742802469996,0.29821658,86990.0,86989.0,0.14764714]
[1742802470211,0.29821658,86990.0,86989.0,0.17954714]
[1742802470708,0.29821658,86990.0,86989.0,0.14764714]
[1742802472113,0.29821658,86990.0,86989.0,0.11584714]
[1742802472608,0.1149653,86981.0,86980.0,0.0029]
[1742802472816,0.1156453,86981.0,86980.0,0.0029]
[1742802473401,0.2952017,86981.0,86980.0,0.0029]
[1742802473802,0.2952017,86981.0,86980.0,0.0339]